bitfinex-derivatives/quotes_ETHF0:USTF0_20251107
["timestamp","ask_amount","ask_price","bid_price","bid_amount"]
[1762522073358,9.1446241,3240.1,3240.0,0.00284459]
[1762522073965,9.1446241,3240.1,3239.7,0.00462955]
[1762522073966,1.14179,3239.8,3239.7,0.00462955]
[1762522074159,4.34959,3239.8,3239.7,0.00462955]
[1762522074960,4.34959,3239.8,3239.7,0.00715264]
[1762522076060,3.8492,3239.8,3239.7,0.00715264]
[1762522076367,4.34959,3239.8,3239.7,0.00715264]
[1762522077363,0.0028741,3240.1,3239.7,0.00715264]
[1762522077560,0.0028741,3240.1,3240.0,1.48796]
[1762522078669,3.70801,3241.0,3240.3,0.6111]
[1762522078869,1.1682,3240.9,3240.6,0.362]
[1762522079071,1.66843,3240.9,3240.6,0.86227]
[1762522079281,1.1682,3240.9,3240.7,0.50025]
[1762522079480,1.1682,3240.9,3240.8,0.50024]
[1762522079672,1.1682,3240.9,3240.7,0.50026]
[1762522080077,1.17069257,3240.9,3240.7,0.50026]
[1762522080376,1.17069257,3240.9,3240.8,1.09314]
[1762522080571,1.17069257,3240.9,3240.8,0.5929]
[1762522080772,1.17069257,3240.9,3240.8,1.09314]
[1762522081785,1.17069257,3240.9,3240.8,0.5929]
[1762522082284,0.6312,3240.8,3240.4,9.699]
[1762522082476,1.17069257,3240.9,3240.2,9.698]
[1762522082679,0.50032,3240.3,3240.2,9.698]
[1762522083278,3.2078,3240.6,3240.2,9.698]
[1762522083483,0.5003,3240.5,3240.1,0.50034]
[1762522083678,0.5003,3240.5,3240.2,9.698]
[1762522083877,0.5003,3240.5,3240.2,10.19833]
[1762522084275,0.5003,3240.5,3240.3,0.50032]
[1762522084479,3.2078,3240.6,3240.0,3.5843]
[1762522084785,0.50039,3239.8,3239.3,4.84466169]
[1762522085080,1.13159,3239.8,3239.3,3.2078]
[1762522085285,9.13159,3239.8,3239.1,8.784]
[1762522085474,9.13159,3239.8,3238.9,10.19753]
[1762522085673,9.13159,3239.8,3238.9,9.697]
[1762522086074,0.50052,3239.0,3238.8,3.2078]
[1762522086387,3.2078,3239.7,3239.0,0.50051]
[1762522086585,0.50046,3239.4,3239.0,0.50051]
[1762522086984,0.50049,3239.2,3238.9,0.50053]
[1762522087187,0.00462955,3239.4,3238.9,0.00294301]
[1762522087485,0.50052,3239.0,3238.9,0.00294301]
[1762522088380,1.13172,3239.0,3238.9,0.00294301]
[1762522088586,3.2078,3239.3,3238.9,0.00294301]
[1762522088780,3.2078,3239.3,3238.9,0.50347301]
[1762522088982,0.50049,3239.2,3238.9,0.00294301]
[1762522089183,0.50052,3239.0,3238.9,0.00294301]
[1762522089579,1.13172,3239.0,3238.9,0.00294301]
[1762522090988,1.13172,3239.0,3238.1,0.50064]
[1762522090989,0.50068,3238.0,3237.8,0.81254913]
[1762522091188,0.50073,3237.6,3237.5,0.81254913]
[1762522091486,3.2078,3237.6,3237.2,1.31333913]
[1762522091783,3.2078,3237.6,3237.2,0.81254913]
[1762522091987,3.2106426,3237.6,3237.2,0.81617122]
[1762522092189,0.50077,3237.4,3237.2,0.81617122]
[1762522092381,0.6312,3237.3,3237.2,0.00362209]
[1762522092990,0.50077,3237.4,3237.2,0.00362209]
[1762522093392,0.6312,3237.3,3237.2,0.00362209]
[1762522094691,1.132,3237.2,3237.1,0.00462955]
[1762522094988,0.50088,3236.7,3236.4,4.38234913]
[1762522095288,0.50079,3237.3,3236.7,0.50087]
[1762522095486,3.2078,3237.5,3236.4,4.38234913]
[1762522095691,0.50077,3237.4,3236.9,0.50083]
[1762522095990,1.3974426,3237.6,3237.4,0.50077]
[1762522096194,1.3974426,3237.6,3237.5,0.5929]
[1762522096683,1.3974426,3237.6,3237.5,8.5929]
[1762522096880,1.3974426,3237.6,3237.5,0.5929]
[1762522097187,3.2078,3238.6,3237.6,0.9549]
[1762522097383,3.2078,3238.6,3238.0,0.50067]
[1762522097384,0.50061,3238.4,3238.0,0.50067]
[1762522097580,3.2078,3238.6,3237.9,0.81067703]
[1762522097777,3.70839,3238.6,3238.3,0.50062]
[1762522097982,3.2078,3238.6,3238.2,3.2078]
[1762522098191,0.00462955,3238.7,3238.6,1.09348]
[1762522098485,0.00820145,3238.7,3238.6,4.30128]
[1762522098683,0.00820145,3238.7,3238.6,5.11195703]
[1762522098882,0.50876145,3238.7,3238.4,0.81067703]
[1762522099087,0.5006,3238.5,3238.4,0.81067703]
[1762522099281,0.00820145,3238.7,3238.5,0.50059]
[1762522099482,0.00820145,3238.7,3238.6,3.8007]
[1762522099677,0.50876145,3238.7,3238.5,1.31126703]
[1762522099895,0.50876145,3238.7,3238.4,0.81067703]
[1762522100091,0.00820145,3238.7,3238.4,0.81067703]
[1762522100291,1.1318,3238.5,3238.3,0.81530658]
[1762522100491,0.50061,3238.4,3238.3,0.00462955]
[1762522100692,1.13181,3238.4,3238.3,0.00462955]
[1762522101292,1.13189,3237.9,3237.8,0.81067703]
[1762522101590,1.13192,3237.7,3237.6,0.81067703]
[1762522102088,0.50071,3237.8,3237.6,0.81067703]
[1762522102295,3.2078,3238.1,3237.7,0.50072]
[1762522102492,0.6312,3237.7,3237.6,0.81067703]
[1762522102688,1.13192,3237.7,3237.5,0.81067703]
[1762522102883,1.13195,3237.5,3237.4,0.81376824]
[1762522103088,1.13195,3237.5,3237.4,0.00309121]
[1762522103290,1.13203,3237.0,3236.9,0.81067703]
[1762522103490,1.13206,3236.8,3236.7,0.81067703]
[1762522103784,0.50087,3236.7,3236.6,0.81067703]
[1762522103991,0.50082,3237.1,3236.7,0.50087]
[1762522104190,0.202,3237.6,3236.8,0.50086]
[1762522104389,0.5008,3237.2,3236.8,3.2078]
[1762522104594,0.00462955,3237.5,3236.8,3.2078]
[1762522104890,0.00462955,3237.5,3237.4,0.50077]
[1762522105285,0.00462955,3237.5,3237.4,1.09367]
[1762522105488,0.00462955,3237.5,3237.4,1.90434703]
[1762522105694,0.00462955,3237.5,3237.4,1.09367]
[1762522105990,0.00462955,3237.5,3237.4,1.90434703]
[1762522106191,0.00462955,3237.5,3237.4,1.09367]
[1762522106391,0.00462955,3237.5,3237.4,2.17697839]
[1762522106988,0.00462955,3237.5,3237.4,10.17697839]
[1762522107188,0.50063,3238.3,3237.4,8.0]
[1762522107388,0.50063,3238.3,3237.7,4.01995488]
[1762522107686,0.50058,3238.6,3238.3,0.50062]
[1762522107885,0.50061,3238.4,3238.1,3.70844]
[1762522108392,0.00462955,3238.6,3238.4,0.50061]
[1762522108692,0.00462955,3238.6,3238.1,3.2078]
[1762522108897,0.5789,3238.2,3237.9,0.81678442]
[1762522109085,0.50067,3238.0,3237.9,0.00462954]
[1762522109282,1.07957,3238.0,3237.9,0.81678442]
[1762522109491,1.07957,3238.0,3237.9,0.00462954]
[1762522110095,0.5789,3238.0,3237.9,0.00462954]
[1762522110301,1.07957,3238.0,3237.9,0.00462954]
[1762522111794,9.07957,3238.0,3237.9,2.954e-05]
[1762522112195,0.5789,3237.2,3237.1,0.81215488]
[1762522112495,1.07973,3237.0,3236.9,4.29067318]
[1762522112696,1.07973,3237.0,3236.9,3.2078]
[1762522112894,1.07974,3236.9,3236.8,1.08287318]
[1762522113083,1.07977,3236.7,3236.6,0.81571228]
[1762522113288,0.5009,3236.6,3236.5,1.08287318]
[1762522113990,0.50087,3236.7,3236.5,1.08287318]
[1762522114192,0.50089,3236.6,3236.5,1.08287318]
[1762522114393,0.50089,3236.7,3236.4,1.63902478]
[1762522114694,0.50087,3236.7,3236.6,1.08967585]
[1762522114883,1.07977,3236.7,3236.6,1.08967585]
[1762522116093,0.00462955,3237.0,3236.7,0.50087]
[1762522116294,0.50546955,3237.0,3236.9,0.81715071]
[1762522116485,0.00462955,3237.0,3236.9,1.31799071]
[1762522116686,0.00462955,3237.0,3236.9,0.50084]
[1762522117089,0.00462955,3237.0,3236.9,1.59051585]
[1762522117287,0.00462955,3237.0,3236.8,1.63686169]
[1762522117486,0.50086,3236.8,3236.7,1.63686169]
[1762522117692,0.50087,3236.7,3236.6,1.09004005]
[1762522117990,0.50087,3236.8,3236.6,1.09004005]
[1762522118394,0.00462955,3237.0,3236.7,1.09004005]
[1762522118592,0.00462955,3237.0,3236.9,2.17718005]
[1762522118792,0.00462955,3237.0,3236.9,2.72400169]
[1762522118993,0.00462955,3237.0,3236.9,2.22316169]
[1762522119293,0.50084,3236.9,3236.8,1.63686169]
[1762522119599,1.07976,3236.8,3236.7,1.63686169]
[1762522119792,0.00462955,3237.0,3236.6,3.2078]
[1762522119992,0.00462955,3237.0,3236.8,1.63426168]
[1762522120197,0.50089,3236.6,3236.5,1.63426168]
[1762522120394,0.50089,3236.6,3236.4,1.63741316]
[1762522120896,0.5009,3236.5,3236.4,0.00216309]
[1762522121099,0.5009,3236.5,3236.4,1.63728403]
[1762522121702,0.30822955,3237.0,3236.4,1.63728403]
[1762522121998,1.04784,3236.9,3236.8,0.81744601]
[1762522122798,8.0,3236.9,3236.6,1.08992802]
[1762522122996,1.0479,3236.5,3236.4,0.00216309]
[1762522123198,1.04798,3236.0,3235.9,1.08992802]
[1762522123401,3.2078,3236.3,3235.8,2.00212802]
[1762522123593,0.50094,3236.3,3236.0,1.08992802]
[1762522123792,0.50097,3236.1,3236.0,1.08992802]
[1762522124098,1.048,3235.9,3235.8,1.08992802]
[1762522124295,1.048,3235.9,3235.8,1.09213258]
[1762522124692,1.048,3235.9,3235.8,0.00220456]
[1762522124901,0.501,3235.9,3235.8,1.09213258]
[1762522125093,3.7088,3235.9,3235.8,1.09213258]
[1762522125292,3.2078,3235.9,3235.8,0.00220456]
[1762522125493,3.2078,3235.9,3235.8,1.09213258]
[1762522125904,3.2078,3235.9,3235.8,2.50534258]
[1762522126108,0.00354625,3236.1,3236.0,1.06708]
[1762522126498,0.00354625,3236.1,3236.0,0.5661]
[1762522126695,0.50098,3236.0,3235.9,1.08848845]
[1762522126894,0.50098,3236.0,3235.8,3.55610456]
[1762522126895,0.00354625,3236.1,3236.0,0.5661]
[1762522127102,0.50451625,3236.1,3235.9,1.08805802]
[1762522127598,0.00354625,3236.1,3235.9,1.58905802]
[1762522127809,0.50451625,3236.1,3235.9,1.08805802]
[1762522128003,0.00354625,3236.1,3235.9,1.08805802]
[1762522128503,0.50098,3236.0,3235.9,1.08805802]
[1762522128707,1.04798,3236.0,3235.9,1.08805802]
[1762522128906,0.501,3235.9,3235.8,4.29806258]
[1762522129303,0.501,3235.9,3235.8,3.21000456]
[1762522129607,0.501,3235.9,3235.8,4.29837158]
[1762522130205,0.501,3236.0,3235.8,3.21000456]
[1762522130405,0.501,3236.0,3235.9,1.08869019]
[1762522131106,0.501,3235.9,3235.8,4.29869475]
[1762522132206,0.501,3235.9,3235.8,3.21000456]
[1762522132604,0.50099,3236.0,3235.8,3.21000456]
[1762522132809,0.50098,3236.0,3235.9,1.65482666]
[1762522133011,0.501,3235.9,3235.8,4.29873122]
[1762522133199,0.00354625,3236.1,3235.8,4.64483122]
[1762522133507,3.51602955,3237.0,3236.0,1.65482666]
[1762522133808,0.50084,3236.9,3236.5,0.50091]
[1762522134009,0.50086,3236.8,3236.7,0.5661]
[1762522134221,0.00462955,3237.0,3236.8,0.5661]
[1762522134514,0.50883397,3237.0,3236.9,0.5661]
[1762522134808,0.50883397,3237.0,3236.7,0.50087]
[1762522135010,0.50085,3236.9,3236.7,0.50087]
[1762522135219,0.00799397,3237.0,3236.9,1.06694]
[1762522135425,0.00799397,3237.0,3236.9,0.5661]
[1762522135714,0.00799397,3237.0,3236.9,1.06694]
[1762522136222,0.00799397,3237.0,3236.9,0.5661]
[1762522137015,0.00799397,3237.0,3236.9,1.06694]
[1762522137423,0.00799397,3237.0,3236.9,0.5661]
[1762522137622,0.00799397,3237.0,3236.9,1.06694]
[1762522137923,0.00799397,3237.0,3236.9,2.15566666]
[1762522138421,0.00799397,3237.0,3236.9,1.06694]
[1762522138622,0.00799397,3237.0,3236.9,2.70206094]
[1762522138824,0.00799397,3237.0,3236.9,1.06694]
[1762522139013,0.00799397,3237.0,3236.9,8.5661]
[1762522139214,1.3922,3237.2,3237.1,0.5616]
[1762522139410,1.3922,3237.2,3237.1,2.69704747]
[1762522139611,1.893,3237.2,3237.1,0.5616]
[1762522139813,1.3922,3237.2,3237.1,1.0899752]
[1762522140020,0.50083,3237.0,3236.9,1.0899752]
[1762522140218,0.50371805,3237.0,3236.9,1.0899752]
[1762522140419,0.50371805,3237.0,3236.6,0.00462955]
[1762522140420,1.04304,3236.9,3236.8,1.0899752]
[1762522140722,3.21068805,3237.0,3236.6,1.09460475]
[1762522140723,1.04307,3236.7,3236.6,1.09460475]
[1762522141425,1.04309,3236.6,3236.5,1.0218778]
[1762522141730,0.5422,3236.2,3236.0,1.6349628]
[1762522141918,3.75,3236.1,3235.8,1.63716736]
[1762522142125,1.0432,3235.9,3235.8,0.00220456]
[1762522142721,1.0432,3235.9,3235.1,1.6349628]
[1762522142722,0.5422,3235.3,3235.1,1.6349628]
[1762522142928,0.50112,3235.1,3235.0,1.6349628]
[1762522143127,0.50114,3235.0,3234.9,1.6349628]
[1762522143330,1.04334,3235.0,3234.8,1.6349628]
[1762522143633,3.70891,3235.2,3235.1,0.5616]
[1762522143834,1.04335,3234.9,3234.8,1.6349628]
[1762522144132,1.04335,3234.9,3234.8,0.00245833]
[1762522145134,0.50115,3234.9,3234.8,0.00245833]
[1762522145636,0.50113,3235.1,3234.8,0.00245833]
[1762522145934,0.50112,3235.1,3234.8,0.00245833]
[1762522146129,0.50115,3235.0,3234.8,0.00245833]
[1762522146434,3.2078,3235.2,3234.8,0.00245833]
[1762522146730,0.50114,3235.0,3234.8,0.00245833]
[1762522147132,0.5422,3234.9,3234.8,0.00245833]
[1762522147524,0.50114,3235.0,3234.8,0.00245833]
[1762522147729,0.50115,3234.9,3234.8,0.00245833]
[1762522148023,3.2078,3235.2,3235.1,0.5616]
[1762522148528,0.50108,3235.4,3235.2,0.3242]
[1762522148728,0.50568955,3235.5,3235.2,0.3242]
[1762522148925,0.00462955,3235.5,3235.4,0.5616]
[1762522149334,0.00462955,3235.5,3235.2,0.8253]
[1762522149535,0.00462955,3235.5,3235.2,0.3242]
[1762522149933,0.50109,3235.3,3235.2,0.3242]
[1762522150130,0.00462955,3235.5,3235.2,0.3242]
[1762522150131,0.50568955,3235.5,3235.2,0.8858]
[1762522150741,0.00462955,3235.5,3235.2,1.3869]
[1762522151044,0.50568955,3235.5,3235.2,1.3869]
[1762522151243,0.00462955,3235.5,3235.4,0.5616]
[1762522151540,2.955e-05,3235.5,3235.4,4.27047]
[1762522151740,0.50095,3236.2,3236.1,0.5616]
[1762522152139,0.50093,3236.4,3236.1,0.5616]
[1762522152337,0.50089,3236.6,3236.2,0.50094]
[1762522152644,0.50089,3236.6,3236.5,0.5616]
[1762522152845,3.70869,3236.7,3236.5,0.5616]
[1762522153040,3.70869,3236.7,3236.6,0.5616]
[1762522153244,0.5009,3236.5,3236.4,0.3242]
[1762522153556,0.50089,3236.6,3236.4,0.8858]
[1762522153849,3.70867,3236.7,3236.6,0.5616]
[1762522154241,3.2078,3236.7,3236.6,0.5616]
[1762522154449,3.2078,3236.7,3236.6,1.06249]
[1762522154947,3.2078,3236.7,3236.6,0.5616]
[1762522155149,3.2078,3236.7,3236.6,1.06249]
[1762522155343,3.70869,3236.7,3236.4,0.3242]
[1762522155543,3.2078,3236.7,3236.2,4.84725168]
[1762522155848,0.50093,3236.3,3236.2,3.21243679]
[1762522156045,0.50092,3236.4,3236.2,3.21243679]
[1762522156247,0.50092,3236.5,3236.2,3.21243679]
[1762522156446,0.50093,3236.4,3236.2,3.21243679]
[1762522156645,3.2078,3236.7,3236.4,0.3242]
[1762522156950,0.50089,3236.6,3236.4,0.3242]
[1762522157249,0.5009,3236.5,3236.4,0.3242]
[1762522157648,4.4098,3236.7,3236.4,1.38672]
[1762522157948,4.4098,3236.7,3236.4,0.3242]
[1762522158252,0.50093,3236.3,3236.2,0.00463679]
[1762522158750,1.04313,3236.3,3236.2,0.00463679]
[1762522159654,12.25093,3236.3,3236.2,0.00463679]
[1762522160142,4.25093,3236.3,3236.2,0.00463679]
[1762522163246,12.25093,3236.3,3236.2,3.679e-05]
[1762522163452,0.50109,3235.3,3235.2,0.3242]
[1762522163753,0.1869,3236.4,3235.1,1.63481489]
[1762522163754,0.50111,3235.2,3235.1,1.63481489]
[1762522163955,0.50112,3235.1,3235.0,1.63481489]
[1762522164250,0.50115,3234.9,3234.8,0.00245833]
[1762522164549,1.04335,3234.9,3234.8,0.00245833]
[1762522167251,8.0,3234.9,3233.8,1.63481489]
[1762522167554,3.2078,3234.2,3233.8,1.63481489]
[1762522167952,0.50132,3233.8,3233.7,1.63481489]
[1762522168152,0.50134,3233.7,3233.6,1.63481489]
[1762522168351,0.50134,3233.7,3233.6,2.20012109]
[1762522168955,0.50134,3233.7,3233.6,1.63852109]
[1762522169156,0.50134,3233.7,3233.6,0.0037062]
[1762522169352,0.97854,3233.7,3233.6,0.0037062]
[1762522170756,0.97854,3233.7,3232.8,0.3242]
[1762522170757,8.4772,3233.7,3232.8,1.63481489]
[1762522171058,3.2078,3233.4,3232.8,0.78237]
[1762522171254,0.00463679,3233.6,3233.1,3.2078]
[1762522171557,0.00463679,3233.6,3233.2,0.50142]
[1762522171751,0.00463679,3233.6,3233.4,0.78228]
[1762522171952,0.00463679,3233.6,3233.4,0.2809]
[1762522172261,0.00463679,3233.6,3233.2,0.00266653]
[1762522172554,0.00463679,3233.6,3233.4,0.78228]
[1762522173054,0.00463679,3233.6,3233.5,0.98567]
[1762522173357,0.00463679,3233.6,3233.5,0.4843]
[1762522173656,0.50598679,3233.6,3233.2,1.09414415]
[1762522173846,0.00463679,3233.6,3233.2,1.09414415]
[1762522174248,0.50139,3233.4,3233.2,0.00266653]
[1762522174451,0.4772,3233.3,3233.2,0.00266653]
[1762522174652,0.00463679,3233.6,3233.2,0.00266653]
[1762522174853,0.50138,3233.5,3233.2,0.00266653]
[1762522175057,0.9786,3233.3,3233.2,0.00266653]
[1762522175463,0.4772,3233.3,3233.2,0.00266653]
[1762522175656,0.9786,3233.3,3233.2,0.00266653]
[1762522175854,8.9786,3233.3,3233.2,0.00266653]
[1762522176162,0.4772,3232.6,3232.4,1.09147762]
[1762522176362,0.4772,3232.6,3232.2,1.09147762]
[1762522176563,0.50154,3232.4,3231.9,1.09147762]
[1762522176863,0.50152,3232.6,3231.7,4.29927762]
[1762522177157,0.50152,3232.5,3231.7,4.30179032]
[1762522177350,0.50151,3232.6,3232.0,0.5016]
[1762522177757,3.2078,3232.8,3232.3,0.50155]
[1762522178062,3.4931,3232.8,3231.8,1.09147762]
[1762522178250,3.4931,3232.8,3231.7,3.2103127]
[1762522179255,3.2078,3232.8,3232.2,0.2809]
[1762522179660,1.2198,3232.7,3232.2,0.2809]
[1762522180054,1.2198,3232.7,3231.7,3.2103127]
[1762522180363,3.2078,3232.4,3231.7,3.2103127]
[1762522181566,1.2198,3232.7,3232.3,0.4745]
[1762522181858,1.2198,3232.7,3231.7,3.2103127]
[1762522182056,3.2078,3232.3,3231.7,3.2103127]
[1762522183156,4.4276,3232.7,3231.7,3.2103127]
[1762522183967,4.4276,3232.7,3232.2,0.2897]
[1762522185160,1.2198,3232.7,3232.5,0.2897]
[1762522185360,3.2078,3232.6,3232.5,0.2897]
[1762522185562,3.2078,3232.6,3232.1,3.2078]
[1762522185761,3.2078,3232.6,3231.7,4.02562922]
[1762522185964,3.2078,3232.6,3232.5,0.7642]
[1762522186464,1.2198,3232.7,3232.6,0.4745]
[1762522189556,1.2198,3232.7,3232.6,1.28981652]
[1762522189762,1.2198,3232.7,3232.6,8.4745]
[1762522189958,1.2198,3232.7,3232.6,9.56597762]
[1762522190171,1.2198,3232.7,3232.6,0.4745]
[1762522190467,1.2198,3232.7,3232.6,1.56597762]
[1762522190861,1.2198,3232.7,3232.6,0.4745]
[1762522191261,1.2198,3232.7,3232.6,1.56597762]
[1762522191661,1.2198,3232.7,3232.6,1.09147762]
[1762522191855,1.2198,3232.7,3232.6,0.81880171]
[1762522192060,1.2198,3232.7,3232.5,1.09147762]
[1762522192268,1.2198,3232.7,3232.6,1.09147762]
[1762522192570,0.50119,3234.7,3232.6,1.09147762]
[1762522192571,1.62789133,3235.5,3235.4,0.4745]
[1762522192770,0.2822,3237.0,3235.6,3.6823]
[1762522192969,0.2822,3236.4,3236.3,0.81723941]
[1762522193267,0.4595,3236.0,3235.9,0.81723941]
[1762522193470,0.46247249,3236.0,3235.9,0.00221604]
[1762522196958,0.00297249,3236.0,3235.9,0.00221604]
[1762522198164,0.46247249,3236.0,3235.9,0.00221604]
[1762522199371,2.17540177,3239.5,3238.8,3.2078]
[1762522199572,2.19789791,3240.2,3239.4,3.5772]
[1762522199781,3.2078,3240.2,3239.4,0.3694]
[1762522199972,3.2078,3239.8,3239.0,0.4430589]
[1762522200271,0.50052,3239.0,3236.8,4.66685255]
[1762522200475,0.50052,3239.0,3238.2,0.09923052]
[1762522200476,3.2078,3238.3,3238.2,0.09923052]
[1762522200674,3.2078,3238.3,3238.2,0.1018473]
[1762522200974,11.2078,3238.3,3238.2,0.1018473]
[1762522201571,3.2078,3238.3,3238.2,0.1018473]
[1762522202476,11.2078,3238.3,3238.2,0.1018473]
[1762522203175,3.2078,3238.3,3238.2,0.1018473]
[1762522203577,0.00462949,3239.7,3238.9,0.3694]
[1762522203875,3.2078,3239.0,3238.9,0.3694]
[1762522205269,11.2078,3239.0,3238.2,0.1018473]
[1762522205468,3.2078,3238.3,3238.2,0.1018473]
[1762522206579,3.2078,3238.7,3238.2,0.1018473]
[1762522206782,3.2078,3238.3,3238.2,0.1018473]
[1762522209172,3.2078,3238.3,3238.2,0.48829495]
[1762522209370,3.2078,3238.3,3238.2,0.1018473]
[1762522211484,3.2078,3238.3,3238.2,0.48841287]
[1762522211686,3.2078,3238.3,3238.2,0.3694]
[1762522212581,3.2078,3238.3,3238.2,0.99024221]
[1762522213884,3.2078,3238.7,3238.2,0.37314221]
[1762522214082,0.50505949,3239.7,3239.0,0.6171]
[1762522214083,3.2078,3239.1,3239.0,0.6171]
[1762522214281,3.2078,3239.5,3239.4,0.9865]
[1762522214488,3.2078,3240.5,3240.0,0.3694]
[1762522215480,0.00349626,3240.5,3240.1,3.2078]
[1762522215678,0.00349626,3240.5,3240.0,0.3694]
[1762522216084,0.00349626,3240.5,3240.1,3.2078]
[1762522216284,0.00349626,3240.5,3240.4,0.6171]
[1762522216880,0.00349626,3240.5,3240.1,3.2078]
[1762522217586,3.2078,3240.4,3240.0,0.3694]
[1762522218777,3.2078,3240.4,3240.0,3.5772]
[1762522218981,0.00349626,3240.5,3240.0,3.5772]
[1762522220191,0.00349626,3240.5,3240.4,3.8249]
[1762522220385,3.2078,3241.5,3241.0,0.3694]
[1762522221090,4.544,3242.3,3241.7,0.3694]
[1762522221285,4.54643353,3242.3,3241.7,0.37172081]
[1762522221491,4.55106302,3242.3,3241.7,0.3763503]
[1762522221891,0.00706302,3242.3,3241.7,0.3763503]
[1762522222190,0.00706302,3242.3,3241.8,3.2078]
[1762522222593,0.00706302,3242.3,3242.2,3.2078]
[1762522225694,0.00706302,3242.3,3242.2,3.8249]
[1762522225989,0.00706302,3242.3,3242.2,3.2078]
[1762522226595,0.00706302,3242.3,3241.8,3.2078]
[1762522228695,0.00706302,3242.3,3242.2,0.6171]
[1762522228898,0.00706302,3242.3,3241.8,3.2078]
[1762522229399,0.00706302,3242.3,3242.2,0.8841]
[1762522229599,0.00706302,3242.3,3241.8,3.2078]
[1762522230099,0.00706302,3242.3,3242.2,4.0919]
[1762522230595,1.09431003,3245.9,3245.2,0.5353]
[1762522230796,1.09431003,3245.9,3244.5,3.7431]
[1762522230797,3.2078,3245.5,3244.5,3.7431]
[1762522230992,3.2078,3245.1,3244.5,3.7431]
[1762522231192,3.2078,3245.1,3244.5,0.5353]
[1762522231401,3.21470092,3245.1,3244.5,0.54261971]
[1762522232892,3.21470092,3245.1,3244.5,3.75041971]
[1762522234899,3.2078,3244.7,3244.5,0.54261971]
[1762522235101,3.21470092,3245.1,3244.5,0.54261971]
[1762522236095,3.21470092,3245.1,3244.5,3.75041971]
[1762522236402,0.00690092,3245.1,3244.5,3.75041971]
[1762522238791,0.49967,3244.7,3244.5,3.75041971]
[1762522240003,0.49967,3244.7,3244.5,0.54261971]
[1762522240198,0.49967,3244.6,3244.5,0.54261971]
[1762522240702,0.49978,3243.9,3243.8,0.5353]
[1762522241397,3.2078,3243.9,3243.2,3.2078]
[1762522241601,3.2078,3243.9,3243.2,3.21550677]
[1762522241602,0.49987,3243.3,3243.2,3.21550677]
[1762522241805,0.49987,3243.3,3243.2,0.00770677]
[1762522242103,0.49987,3243.3,3242.4,0.5353]
[1762522242104,0.49999,3242.5,3242.4,0.5353]
[1762522242998,0.00341195,3242.5,3242.4,0.53801183]
[1762522243196,0.50340195,3242.5,3242.4,0.53801183]
[1762522244209,0.00341195,3242.5,3242.4,0.53801183]
[1762522244902,0.50340195,3242.5,3242.4,0.53801183]
[1762522245505,0.00341195,3242.5,3242.4,0.53801183]
[1762522245807,0.00341195,3242.5,3242.4,1.42631183]
[1762522246607,0.504571,3242.8,3242.7,0.8883]
[1762522246804,0.504571,3242.8,3242.7,3.2078]
[1762522247006,0.49999,3242.5,3242.4,0.53801183]
[1762522247713,0.50217962,3242.5,3242.4,0.53801183]
[1762522249802,0.00218962,3242.5,3242.4,0.53801183]
[1762522250107,0.00218962,3242.5,3242.4,1.42631183]
[1762522250808,3.2078,3243.2,3243.1,0.5457]
[1762522251112,0.49989,3243.2,3243.1,0.5457]
[1762522251807,0.50283948,3243.2,3243.1,0.5457]
[1762522252507,0.50283948,3243.2,3243.1,1.434]
[1762522252708,0.50283948,3243.2,3243.1,0.5457]
[1762522255005,0.00294948,3243.2,3243.1,1.434]
[1762522255314,0.50283948,3243.2,3243.1,1.434]
[1762522255700,0.00294948,3243.2,3243.1,1.434]
[1762522256010,0.50283948,3243.2,3243.1,1.434]
[1762522256410,0.00294948,3243.2,3243.1,1.434]
[1762522256618,0.50283948,3243.2,3243.1,1.434]
[1762522257110,0.50283948,3243.2,3243.1,0.5457]
[1762522259016,0.49996,3242.7,3242.6,3.2078]
[1762522260119,3.21074948,3243.2,3242.4,0.53801183]
[1762522260318,3.21074948,3243.2,3242.4,1.37091183]
[1762522260521,0.5,3242.5,3242.4,1.37091183]
[1762522260720,0.5,3242.5,3242.4,0.53801183]
[1762522261313,0.4999,3243.1,3243.0,0.5014]
[1762522261517,3.2078,3244.1,3243.4,0.8329]
[1762522261711,10.125,3244.3,3244.2,0.5014]
[1762522261924,10.125,3244.3,3243.6,0.5014]
[1762522262123,0.49981,3243.7,3243.6,0.5014]
[1762522262510,3.2078,3244.1,3243.2,3.2078]
[1762522262816,0.49995,3242.8,3242.7,3.2078]
[1762522263021,0.5,3242.5,3242.4,0.54263283]
[1762522263822,3.2078,3243.3,3243.0,0.5014]
[1762522264016,3.2078,3243.7,3243.6,0.5014]
[1762522264223,3.70761,3243.7,3243.6,0.5014]
[1762522264522,3.70761,3243.7,3243.6,1.3343]
[1762522264523,0.49981,3243.7,3243.6,1.3343]
[1762522266128,0.49981,3243.7,3243.6,0.5014]
[1762522266526,0.004621,3244.0,3243.6,0.5014]
[1762522266833,0.49978,3243.9,3243.8,3.2078]
[1762522267038,0.004621,3244.0,3243.9,0.8329]
[1762522267230,0.504381,3244.0,3243.9,0.8329]
[1762522267624,0.49981,3243.7,3243.6,1.31082962]
[1762522267826,0.49981,3243.7,3243.6,0.5014]
[1762522268232,0.49986,3243.4,3243.3,4.01722962]
[1762522268534,0.49986,3243.4,3243.3,4.85012962]
[1762522268733,0.49986,3243.4,3243.3,4.0407]
[1762522269232,0.49986,3243.4,3243.3,4.85012962]
[1762522269434,0.49986,3243.4,3243.3,4.01722962]
[1762522269634,0.49992,3243.0,3242.9,3.2078]
[1762522270135,0.5,3242.5,3242.4,0.54263283]
[1762522270740,3.7078,3242.5,3242.4,0.00733283]
[1762522271324,0.50006,3242.1,3242.0,0.78556995]
[1762522271528,0.50006,3242.1,3241.8,0.5014]
[1762522271529,0.50009,3241.9,3241.8,0.5014]
[1762522271831,11.106,3243.5,3241.8,3.7092]
[1762522271832,3.2078,3242.5,3241.8,3.7092]
[1762522272028,3.70781,3242.5,3242.4,0.5014]
[1762522272235,1.63832749,3243.8,3242.6,0.8329]
[1762522272236,0.49997,3242.7,3242.6,0.8329]
[1762522272538,0.49995,3242.8,3242.6,0.8329]
[1762522273336,0.004621,3243.0,3242.7,0.8329]